lending/lending_fUSD_20250409
["ID","MTS","AMOUNT","RATE_DAILY","PERIOD"]
[357607205,1744235461206,-2065.11859911,0.00034247,7]
[357607206,1744235461215,-2065.11859911,0.00034247,7]
[357607207,1744235461225,-2065.11859911,0.00034247,7]
[357607208,1744235461234,-2065.11859911,0.00034247,7]
[357607209,1744235461244,-2065.11859911,0.00034247,7]
[357607210,1744235461253,-2065.11859911,0.00034247,7]
[357607211,1744235461263,-2065.11859911,0.00034247,7]
[357607212,1744235461272,-2065.11859911,0.00034247,7]
[357607213,1744235461282,-2065.11859911,0.00034247,7]
[357607214,1744235461292,-2065.11859911,0.00034247,7]
[357607215,1744235461302,-2065.11859911,0.00034247,7]
[357607216,1744235461312,-2065.11859911,0.00034247,7]
[357607217,1744235461322,-2065.11859911,0.00034247,7]
[357607218,1744235461332,-2065.11859911,0.00034247,7]
[357607219,1744235461342,-2065.11859911,0.00034247,7]
[357607220,1744235461352,-2065.11859911,0.00034247,7]
[357607221,1744235461363,-2065.11859911,0.00034247,7]
[357607222,1744235461372,-2065.11859911,0.00034247,7]
[357607223,1744235461383,-2065.11859911,0.00034247,7]
[357607224,1744235461393,-2065.11859911,0.00034247,7]
[357607225,1744235461403,-2065.11859911,0.00034247,7]
[357607226,1744235461413,-2065.11859911,0.00034247,7]
[357607227,1744235461422,-2065.11859911,0.00034247,7]
[357607228,1744235461436,-2065.11859911,0.00034247,7]
[357607229,1744235461445,-2065.11859911,0.00034247,7]
[357607230,1744235461456,-2065.11859911,0.00034247,7]
[357607231,1744235461466,-2065.11859911,0.00034247,7]
[357607232,1744235461475,-2065.11859911,0.00034247,7]
[357607233,1744235461485,-2065.11859911,0.00034247,7]
[357607234,1744235461495,-2065.11859911,0.00034247,7]
[357607235,1744235461504,-2065.11859911,0.00034247,7]
[357607236,1744235461515,-2065.11859911,0.00034247,7]
[357607237,1744235461525,-2065.11859911,0.00034247,7]
[357607238,1744235461535,-2065.11859911,0.00034247,7]
[357607239,1744235461544,-2065.11859911,0.00034247,7]
[357607240,1744235461553,-2065.11859911,0.00034247,7]
[357607241,1744235461565,-2065.11859911,0.00034247,7]
[357607242,1744235461575,-2065.11859911,0.00034247,7]
[357607243,1744235461584,-2065.11859911,0.00034247,7]
[357607244,1744235461594,-2065.11859911,0.00034247,7]
[357607245,1744235461604,-2065.11859911,0.00034247,7]
[357607246,1744235461613,-2065.11859911,0.00034247,7]
[357607247,1744235461623,-2065.11859911,0.00034247,7]
[357607248,1744235461632,-2065.11859911,0.00034247,7]
[357607249,1744235461641,-2065.11859911,0.00034247,7]
[357607250,1744235461651,-2065.11859911,0.00034247,7]
[357607251,1744235461661,-2065.11859911,0.00034247,7]
[357607252,1744235461670,-151.0,0.00034247,7]
[357607253,1744235461680,-342.06,0.00034388,2]
[357607254,1744235461689,-1766.36,0.00034548,39]
[357607255,1744235461699,-152.452924,0.00034548,39]
[357607256,1744235461708,-1665.37,0.00034651,2]
[357607257,1744235461718,-500.0,0.00034725,5]
[357607258,1744235461727,-500.0,0.00034725,5]
[357607259,1744235461736,-500.01597978,0.00034725,5]
[357607260,1744235461746,-506.29712266,0.00034725,5]
[357607261,1744235461755,-566.66970493,0.00034725,5]
[357607262,1744235461764,-301.78322636,0.00034867,5]
[357607263,1744235461774,-501.71063277,0.00034867,5]
[357607264,1744235461784,-891.4,0.0003491,2]
[357607265,1744235461890,-29636.73336418,0.00035,4]
[357607266,1744235461900,-650.0,0.00035,2]
[357607267,1744235461909,-151.0,0.00035,7]
[357607268,1744235461919,-150.0,0.00035,120]
[357607269,1744235461928,-151.0,0.00035,7]
[357607270,1744235461937,-151.0,0.00035,7]
[357607271,1744235461947,-160.7,0.00035,2]
[357607272,1744235461955,-160.7,0.00035,2]
[357607273,1744235461965,-527.66,0.00035068,2]
[357607274,1744235461975,-500.0,0.0003515,5]
[357607275,1744235461984,-500.0,0.0003515,5]
[357607276,1744235461994,-151.0,0.00035325,7]
[357607277,1744235462003,-151.0,0.00035325,7]
[357607278,1744235462013,-309.29654756,0.00035426,2]
[357607279,1744235462022,-1767.17,0.00035644,30]
[357607280,1744235462032,-342.06,0.00035758,2]
[357607281,1744235462040,-465.696,0.00035826,2]
[357607282,1744235462050,-2042.0,0.00035826,2]
[357607283,1744235462059,-780.049,0.00035826,2]
[357607284,1744235462069,-3958.0,0.00035826,2]
[357607285,1744235462079,-151.0,0.00035826,2]
[357607286,1744235462089,-348.14,0.00035899,2]
[357607287,1744235462098,-500.0,0.00035999,2]
[357607288,1744235462108,-500.0,0.00035999,2]
[357607289,1744235462118,-500.0,0.00035999,2]
[357607290,1744235462128,-500.0,0.00035999,2]
[357607291,1744235462137,-500.0,0.00035999,2]
[357607292,1744235462147,-500.0,0.00035999,2]
[357607293,1744235462156,-500.0,0.00035999,2]
[357607294,1744235462166,-500.0,0.00035999,2]
[357607295,1744235462175,-500.0,0.00035999,2]
[357607296,1744235462185,-500.0,0.00035999,2]
[357607297,1744235462195,-500.0,0.00035999,2]
[357607298,1744235462204,-500.0,0.00035999,2]
[357607299,1744235462214,-500.0,0.00035999,2]
[357607300,1744235462223,-150.0,0.00035999,3]
[357607301,1744235462233,-314165.48225283,0.00036,2]
[357607302,1744235462243,-151.0,0.00036,7]
[357607303,1744235462252,-151.0,0.00036,7]
[357607304,1744235462261,-151.0,0.00036,7]
[357607305,1744235462271,-151.0,0.00036,7]
[357607306,1744235462280,-162.293638,0.00036,7]
[357607307,1744235462290,-152.411252,0.00036,7]
[357607308,1744235462299,-195.561287,0.00036,7]
[357607309,1744235462308,-151.0,0.00036,7]
[357607310,1744235462319,-1481.4003201,0.00036,37]
[357607311,1744235462327,-151.0,0.00036,7]
[357607312,1744235462337,-156.106507,0.00036,7]
[357607313,1744235462346,-151.0,0.00036,7]
[357607314,1744235462355,-151.0,0.00036,7]
[357607315,1744235462365,-151.0,0.00036,7]
[357607316,1744235462374,-151.0,0.00036,7]
[357607317,1744235462383,-151.0,0.00036,7]
[357607318,1744235462392,-151.0,0.00036,7]
[357607319,1744235462401,-151.0,0.00036,7]
[357607320,1744235462411,-151.0,0.00036,7]
[357607321,1744235462420,-151.0,0.00036,7]
[357607322,1744235462433,-443.216188,0.00036,7]
[357607323,1744235462442,-443.216188,0.00036,7]
[357607324,1744235462452,-151.0,0.00036,7]
[357607325,1744235462461,-872.89554,0.00036,7]
[357607326,1744235462471,-872.89554,0.00036,7]
[357607327,1744235462480,-151.0,0.00036,7]
[357607328,1744235462490,-275.59456,0.00036,7]
[357607329,1744235462499,-151.0,0.00036,7]
[357607330,1744235462509,-299.545268,0.00036,7]
[357607331,1744235462518,-299.545268,0.00036,7]
[357607332,1744235462527,-253.79654,0.00036,7]
[357607333,1744235462537,-151.0,0.00036,7]
[357607334,1744235462546,-151.0,0.00036,7]
[357607335,1744235462555,-151.0,0.00036,7]
[357607336,1744235462564,-151.0,0.00036,7]
[357607337,1744235462573,-151.0,0.00036,7]
[357607338,1744235462582,-151.0,0.00036,7]
[357607339,1744235462591,-151.0,0.00036,7]
[357607340,1744235462601,-151.0,0.00036,7]
[357607341,1744235462610,-151.0,0.00036,7]
[357607342,1744235462619,-151.0,0.00036,7]
[357607343,1744235462628,-232.031497,0.00036,7]
[357607344,1744235462637,-232.031497,0.00036,7]
[357607345,1744235462646,-277.845457,0.00036,7]
[357607346,1744235462655,-277.845457,0.00036,7]
[357607347,1744235462664,-151.0,0.00036,7]
[357607348,1744235462673,-151.0,0.00036,7]
[357607349,1744235462682,-151.0,0.00036,7]
[357607350,1744235462692,-2733.502155,0.00036,7]
[357607351,1744235462701,-2733.502155,0.00036,7]
[357607352,1744235462711,-151.0,0.00036,7]
[357607353,1744235462720,-151.0,0.00036,7]
[357607354,1744235462729,-151.0,0.00036,7]
[357607355,1744235462738,-203.198307,0.00036,7]
[357607356,1744235462747,-151.0,0.00036,7]
[357607357,1744235462756,-203.198307,0.00036,7]
[357607358,1744235462765,-415.326059,0.00036,7]
[357607359,1744235462774,-415.326059,0.00036,7]
[357607360,1744235462783,-151.0,0.00036,7]
[357607361,1744235462792,-151.0,0.00036,7]
[357607362,1744235462801,-151.0,0.00036,7]
[357607363,1744235462811,-322.127338,0.00036,7]
[357607364,1744235462820,-298.463992,0.00036,7]
[357607365,1744235462830,-322.127338,0.00036,7]
[357607366,1744235462839,-438.390124,0.00036,7]
[357607367,1744235462848,-151.0,0.00036,7]
[357607368,1744235462857,-438.390124,0.00036,7]
[357607369,1744235462866,-151.0,0.00036,7]
[357607370,1744235462875,-154.400418,0.00036,7]
[357607371,1744235462884,-154.400418,0.00036,7]
[357607372,1744235462893,-225.23487,0.00036,7]
[357607373,1744235462902,-151.0,0.00036,7]
[357607374,1744235462911,-152.436731,0.00036,7]
[357607375,1744235462920,-151.0,0.00036,7]
[357607376,1744235462929,-2159.739625,0.00036,7]
[357607377,1744235462938,-151.0,0.00036,7]
[357607378,1744235462947,-2159.739625,0.00036,7]
[357607379,1744235462956,-254.959028,0.00036,7]
[357607380,1744235462966,-254.959028,0.00036,7]
[357607381,1744235462975,-151.0,0.00036,7]
[357607382,1744235462985,-151.0,0.00036,7]
[357607383,1744235462994,-151.0,0.00036,7]
[357607384,1744235463003,-151.0,0.00036,7]
[357607385,1744235463013,-151.0,0.00036,7]
[357607386,1744235463022,-317.612319,0.00036,7]
[357607387,1744235463032,-317.612319,0.00036,7]
[357607388,1744235463042,-151.0,0.00036,7]
[357607389,1744235463051,-165.0,0.00036081,5]
[357607390,1744235463061,-266.83495689,0.0003611,2]
[357607391,1744235463071,-392.435317,0.00036153,120]
[357607392,1744235463081,-1479.98013403,0.00036188,5]
[357607393,1744235463091,-322.17,0.00036676,2]
[357607394,1744235463101,-300.0,0.00036676,2]
[357607395,1744235463112,-443.88,0.00036676,2]
[357607396,1744235463122,-208.58,0.0003672,2]
[357607397,1744235463132,-157.77,0.0003672,2]
[357607398,1744235463142,-348.51,0.0003672,2]
[357607399,1744235463151,-463.34,0.0003672,2]
[357607400,1744235463161,-300.0,0.0003672,2]
[357607401,1744235463170,-150.0,0.0003672,2]
[357607402,1744235463180,-445.28,0.0003672,2]
[357607403,1744235463189,-150.0,0.0003672,2]
[357607404,1744235463199,-445.28,0.0003672,2]
[357607405,1744235463208,-150.0,0.0003672,2]
[357607406,1744235463217,-445.28,0.0003672,2]
[357607407,1744235463227,-150.0,0.0003672,2]
[357607408,1744235463237,-159.56,0.0003672,2]
[357607409,1744235463247,-159.56,0.0003672,2]
[357607410,1744235463256,-159.56,0.0003672,2]
[357607411,1744235463266,-159.56,0.0003672,2]
[357607412,1744235463275,-159.56,0.0003672,2]
[357607413,1744235463285,-159.56,0.0003672,2]
[357607414,1744235463295,-159.56,0.0003672,2]
[357607415,1744235463305,-159.56,0.0003672,2]
[357607416,1744235463314,-159.56,0.0003672,2]
[357607417,1744235463323,-320.74051982,0.00036795,2]
[357607418,1744235463334,-500.0,0.00036804,120]
[357607419,1744235463344,-2000.0,0.00036804,120]
[357607420,1744235463355,-500.0,0.00036804,120]
[357607421,1744235463364,-446.15,0.00036852,2]
[357607422,1744235463374,-1138.64,0.00036852,2]
[357607423,1744235463384,-446.15,0.00036852,2]
[357607424,1744235463394,-446.15,0.00036852,2]
[357607425,1744235463404,-446.15,0.00036852,2]
[357607426,1744235463414,-446.15,0.00036852,2]
[357607427,1744235463424,-1665.37,0.00036915,2]
[357607428,1744235463442,-872.81532786,0.00037,2]
[357607429,1744235463452,-1800.0,0.00037,38]
[357607430,1744235463462,-700.0,0.00037,2]
[357607431,1744235463472,-1000.0,0.00037079,5]
[357607432,1744235463482,-342.06,0.00037128,2]
[357607433,1744235463492,-1000.0,0.00037174,4]
[357607434,1744235463502,-151.041005,0.00037198,120]
[357607435,1744235463512,-151.0,0.000372,7]
[357607436,1744235463522,-151.0,0.000372,7]
[357607437,1744235463531,-2936.14196651,0.000372,103]
[357607438,1744235463541,-2936.14196647,0.000372,103]
[357607439,1744235463551,-2936.14196647,0.000372,103]
[357607440,1744235463561,-2936.14196647,0.000372,103]
[357607441,1744235463571,-2936.14196647,0.000372,103]
[357607442,1744235463580,-177.806214,0.00037471,7]
[357607443,1744235463590,-616.294201,0.00037471,7]
[357607444,1744235463599,-616.294201,0.00037471,7]
[357607445,1744235463609,-163.127945,0.00037471,7]
[357607446,1744235463618,-163.127945,0.00037471,7]
[357607447,1744235463627,-265.360149,0.00037471,7]
[357607448,1744235463637,-265.360149,0.00037471,7]
[357607449,1744235463647,-3078.0426414,0.00037471,4]
[357607450,1744235463656,-348.14,0.00037498,2]
[357607451,1744235463666,-157.03,0.00037498,2]
[357607452,1744235463676,-151.041005,0.00037498,120]
[357607453,1744235463685,-159.56,0.00037542,2]
[357607454,1744235463695,-159.56,0.00037542,2]
[357607455,1744235463704,-294.31,0.00037542,2]
[357607456,1744235463714,-159.56,0.00037542,2]
[357607457,1744235463724,-159.56,0.00037542,2]
[357607458,1744235463733,-159.56,0.00037542,2]
[357607459,1744235463743,-159.56,0.00037542,2]
[357607460,1744235463752,-159.56,0.00037542,2]
[357607461,1744235463762,-159.56,0.00037542,2]
[357607462,1744235463771,-159.56,0.00037542,2]
[357607463,1744235463781,-159.56,0.00037542,2]
[357607464,1744235463791,-159.56,0.00037542,2]
[357607465,1744235463801,-205.3645,0.000376,120]
[357607466,1744235463810,-1000.0,0.000376,7]
[357607467,1744235463821,-1000.0,0.000377,7]
[357607468,1744235463831,-151.041005,0.00037798,120]
[357607469,1744235463841,-1012.0,0.000378,7]
[357607470,1744235463851,-1000.0,0.000379,7]
[357607471,1744235463861,-1000.0,0.00037997,4]
[357607472,1744235463871,-150.87456936,0.00038,60]
[357607473,1744235463881,-1800.0,0.00038,39]
[357607474,1744235463891,-450.0,0.00038,2]
[357607475,1744235463901,-154.0,0.00038,2]
[357607476,1744235463911,-150.0,0.00038014,7]
[357607477,1744235463921,-181.494,0.00038014,7]
[357607478,1744235463931,-1000.0,0.00038109,4]
[357607479,1744235463941,-167.403207,0.00038146,2]
[357607480,1744235463950,-424.2580837,0.00038148,5]
[357607481,1744235463961,-332.60791905,0.00038164,2]
[357607482,1744235463972,-151.041005,0.00038198,120]
[357607483,1744235463982,-150.0,0.000383,6]
[357607484,1744235463992,-311.410802,0.000383,26]
[357607485,1744235464002,-2000.0,0.0003835,4]
[357607486,1744235464012,-500.0,0.00038355,2]
[357607487,1744235464023,-500.0,0.00038355,2]
[357607488,1744235464033,-500.0,0.00038355,2]
[357607489,1744235464043,-500.0,0.00038355,2]
[357607490,1744235464054,-500.0,0.00038355,2]
[357607491,1744235464064,-500.0,0.00038355,2]
[357607492,1744235464075,-500.0,0.00038355,2]
[357607493,1744235464085,-500.0,0.00038355,2]
[357607494,1744235464095,-500.0,0.00038355,2]
[357607495,1744235464105,-500.0,0.00038355,2]
[357607496,1744235464115,-500.0,0.00038355,2]
[357607497,1744235464125,-500.0,0.00038355,2]
[357607498,1744235464135,-500.0,0.00038355,2]
[357607499,1744235464145,-155.642591,0.00038355,7]
[357607500,1744235464155,-151.0,0.00038355,7]
[357607501,1744235464165,-151.0,0.00038355,7]
[357607502,1744235464175,-150.0,0.00038355,3]
[357607503,1744235464186,-150.0,0.00038355,3]
[357607504,1744235464201,-151.0,0.00038356,7]
[357607505,1744235464215,-151.0,0.00038356,7]
[357607506,1744235464228,-225.647584,0.00038356,7]
[357607507,1744235464238,-163.742405,0.00038356,2]
[357607508,1744235464248,-151.0,0.00038356,7]
[357607509,1744235464258,-151.0,0.00038356,7]
[357607510,1744235464268,-151.0,0.00038356,7]
[357607511,1744235464278,-151.0,0.00038356,7]
[357607512,1744235464288,-151.0,0.00038356,7]
[357607513,1744235464298,-158.846847,0.00038356,7]
[357607514,1744235464308,-151.0,0.00038356,7]
[357607515,1744235464319,-151.0,0.00038356,7]
[357607516,1744235464329,-151.0,0.00038356,7]
[357607517,1744235464339,-151.0,0.00038356,7]
[357607518,1744235464349,-151.0,0.00038356,7]
[357607519,1744235464359,-151.0,0.00038356,7]
[357607520,1744235464369,-151.0,0.00038356,7]
[357607521,1744235464380,-151.0,0.00038356,7]
[357607522,1744235464390,-151.0,0.00038356,7]
[357607523,1744235464400,-151.0,0.00038356,7]
[357607524,1744235464411,-151.0,0.00038356,7]
[357607525,1744235464421,-263.623427,0.00038356,7]
[357607526,1744235464434,-152.456959,0.00038356,7]
[357607527,1744235464444,-151.0,0.00038356,7]
[357607528,1744235464454,-151.0,0.00038356,7]
[357607529,1744235464464,-151.0,0.00038356,7]
[357607530,1744235464475,-151.0,0.00038356,7]
[357607531,1744235464486,-151.0,0.00038356,7]
[357607532,1744235464496,-259.057221,0.00038356,7]
[357607533,1744235464507,-151.0,0.00038356,7]
[357607534,1744235464518,-151.0,0.00038356,7]
[357607535,1744235464528,-151.0,0.00038356,7]
[357607536,1744235464538,-151.0,0.00038356,7]
[357607537,1744235464549,-151.0,0.00038356,7]
[357607538,1744235464559,-151.0,0.00038356,7]
[357607539,1744235464569,-279.537402,0.00038356,7]
[357607540,1744235464579,-151.0,0.00038356,7]
[357607541,1744235464589,-151.0,0.00038356,7]
[357607542,1744235464599,-151.0,0.00038356,7]
[357607543,1744235464609,-443.216188,0.00038356,7]
[357607544,1744235464619,-443.216188,0.00038356,7]
[357607545,1744235464629,-443.216188,0.00038356,7]
[357607546,1744235464639,-443.216188,0.00038356,7]
[357607547,1744235464649,-443.216188,0.00038356,7]
[357607548,1744235464658,-443.216188,0.00038356,7]
[357607549,1744235464668,-443.216188,0.00038356,7]
[357607550,1744235464678,-443.216188,0.00038356,7]
[357607551,1744235464688,-500.0,0.00038356,2]
[357607552,1744235464697,-500.0,0.00038356,2]
[357607553,1744235464707,-544.03174391,0.00038356,2]
[357607554,1744235464716,-500.0,0.00038356,2]
[357607555,1744235464726,-500.0,0.00038356,2]
[357607556,1744235464735,-500.0,0.00038356,2]
[357607557,1744235464745,-504.38259203,0.00038356,2]
[357607558,1744235464754,-500.0,0.00038356,2]
[357607559,1744235464764,-500.0,0.00038356,2]
[357607560,1744235464774,-500.0,0.00038356,2]
[357607561,1744235464783,-500.0,0.00038356,2]
[357607562,1744235464793,-509.68377964,0.00038356,2]
[357607563,1744235464803,-500.0,0.00038356,2]
[357607564,1744235464812,-500.0,0.00038356,2]
[357607565,1744235464822,-500.0,0.00038356,2]
[357607566,1744235464831,-500.0,0.00038356,2]
[357607567,1744235464841,-500.0,0.00038356,2]
[357607568,1744235464851,-500.0,0.00038356,2]
[357607569,1744235464861,-500.0,0.00038356,2]
[357607570,1744235464870,-516.26856854,0.00038356,2]
[357607571,1744235464880,-500.0,0.00038356,2]
[357607572,1744235464889,-353.99897194,0.00038356,2]
[357607573,1744235464899,-500.0,0.00038356,2]
[357607574,1744235464908,-500.0,0.00038356,2]
[357607575,1744235464918,-500.0,0.00038356,2]
[357607576,1744235464928,-500.0,0.00038356,2]
[357607577,1744235464937,-500.0,0.00038356,2]
[357607578,1744235464947,-500.0,0.00038356,2]
[357607579,1744235464956,-264.69390039,0.00038356,2]
[357607580,1744235464966,-500.0,0.00038356,2]
[357607581,1744235464976,-575.82641512,0.00038356,2]
[357607582,1744235464985,-500.0,0.00038356,2]
[357607583,1744235464995,-500.0,0.00038356,2]
[357607584,1744235465005,-500.0,0.00038356,2]
[357607585,1744235465014,-501.01626865,0.00038356,2]
[357607586,1744235465024,-502.68351298,0.00038356,2]
[357607587,1744235465034,-500.0,0.00038356,2]
[357607588,1744235465043,-500.0,0.00038356,2]
[357607589,1744235465053,-500.0,0.00038356,2]
[357607590,1744235465063,-500.0,0.00038356,2]
[357607591,1744235465073,-500.0,0.00038356,2]
[357607592,1744235465083,-872.89554,0.00038356,7]
[357607593,1744235465093,-872.89554,0.00038356,7]
[357607594,1744235465103,-500.0,0.00038356,2]
[357607595,1744235465112,-500.0,0.00038356,2]
[357607596,1744235465122,-872.89554,0.00038356,7]
[357607597,1744235465132,-872.89554,0.00038356,7]
[357607598,1744235465142,-1000.0,0.00038356,2]
[357607599,1744235465152,-151.0,0.00038356,7]
[357607600,1744235465162,-151.0,0.00038356,7]
[357607601,1744235465172,-500.0,0.00038356,2]
[357607602,1744235465182,-500.0,0.00038356,2]
[357607603,1744235465191,-500.0,0.00038356,2]
[357607604,1744235465201,-504.0678087,0.00038356,2]
[357607605,1744235465210,-538.36811409,0.00038356,2]
[357607606,1744235465220,-500.0,0.00038356,2]
[357607607,1744235465241,-500.0,0.00038356,2]
[357607608,1744235465252,-768.82,0.00038356,2]
[357607609,1744235465262,-500.0,0.00038356,2]
[357607610,1744235465272,-215.438109,0.00038356,7]
[357607611,1744235465283,-209.28935701,0.00038356,2]
[357607612,1744235465294,-500.0,0.00038356,2]
[357607613,1744235465305,-500.0,0.00038356,2]
[357607614,1744235465316,-550.39631286,0.00038356,2]
[357607615,1744235465327,-504.92248121,0.00038356,2]
[357607616,1744235465338,-500.0,0.00038356,2]
[357607617,1744235465349,-500.0,0.00038356,2]
[357607618,1744235465359,-500.0,0.00038356,2]
[357607619,1744235465370,-1033.22,0.00038356,2]
[357607620,1744235465380,-255.27616225,0.00038356,2]
[357607621,1744235465390,-500.0,0.00038356,2]
[357607622,1744235465402,-500.0,0.00038356,2]
[357607623,1744235465412,-500.0,0.00038356,2]
[357607624,1744235465423,-500.0,0.00038356,2]
[357607625,1744235465436,-500.0,0.00038356,2]
[357607626,1744235465447,-500.0,0.00038356,2]
[357607627,1744235465458,-500.0,0.00038356,2]
[357607628,1744235465468,-500.0,0.00038356,2]
[357607629,1744235465479,-500.0,0.00038356,2]
[357607630,1744235465489,-500.0,0.00038356,2]
[357607631,1744235465500,-500.0,0.00038356,2]
[357607632,1744235465511,-500.0,0.00038356,2]
[357607633,1744235465521,-500.0,0.00038356,2]
[357607634,1744235465532,-500.0,0.00038356,2]
[357607635,1744235465542,-500.0,0.00038356,2]
[357607636,1744235465553,-500.0,0.00038356,2]
[357607637,1744235465563,-471.7445436,0.00038356,2]
[357607638,1744235465574,-500.0,0.00038356,2]
[357607639,1744235465584,-500.0,0.00038356,2]
[357607640,1744235465595,-151.0,0.00038356,7]
[357607641,1744235465606,-151.0,0.00038356,7]
[357607642,1744235465617,-500.0,0.00038356,2]
[357607643,1744235465628,-500.0,0.00038356,2]
[357607644,1744235465638,-690.19,0.00038356,2]
[357607645,1744235465648,-500.0,0.00038356,2]
[357607646,1744235465659,-500.0,0.00038356,2]
[357607647,1744235465669,-500.0,0.00038356,2]
[357607648,1744235465680,-500.0,0.00038356,2]
[357607649,1744235465690,-500.0,0.00038356,2]
[357607650,1744235465701,-653.93,0.00038356,2]
[357607651,1744235465711,-500.0,0.00038356,2]
[357607652,1744235465722,-500.0,0.00038356,2]
[357607653,1744235465732,-500.0,0.00038356,2]
[357607654,1744235465743,-512.29608747,0.00038356,2]
[357607655,1744235465753,-500.0,0.00038356,2]
[357607656,1744235465763,-500.0,0.00038356,2]
[357607657,1744235465774,-500.0,0.00038356,2]
[357607658,1744235465784,-500.0,0.00038356,2]
[357607659,1744235465794,-500.0,0.00038356,2]
[357607660,1744235465805,-500.0,0.00038356,2]
[357607661,1744235465816,-562.39,0.00038356,2]
[357607662,1744235465826,-525.45339266,0.00038356,2]
[357607663,1744235465837,-500.0,0.00038356,2]
[357607664,1744235465847,-500.0,0.00038356,2]
[357607665,1744235465857,-500.0,0.00038356,2]
[357607666,1744235465868,-151.0,0.00038356,7]
[357607667,1744235465878,-151.0,0.00038356,7]
[357607668,1744235465889,-299.545268,0.00038356,7]
[357607669,1744235465900,-500.0,0.00038356,2]
[357607670,1744235465910,-299.545268,0.00038356,7]
[357607671,1744235465921,-500.0,0.00038356,2]
[357607672,1744235465932,-500.0,0.00038356,2]
[357607673,1744235465942,-500.0,0.00038356,2]
[357607674,1744235465953,-299.545268,0.00038356,7]
[357607675,1744235465963,-299.545268,0.00038356,7]
[357607676,1744235465974,-500.0,0.00038356,2]
[357607677,1744235465985,-500.0,0.00038356,2]
[357607678,1744235465997,-500.0,0.00038356,2]
[357607679,1744235466273,-500.0,0.00038356,2]
[357607680,1744235466284,-500.0,0.00038356,2]
[357607681,1744235466294,-504.57856277,0.00038356,2]
[357607682,1744235466304,-500.0,0.00038356,2]
[357607683,1744235466313,-500.0,0.00038356,2]
[357607684,1744235466323,-500.0,0.00038356,2]
[357607685,1744235466333,-151.0,0.00038356,7]
[357607686,1744235466343,-151.0,0.00038356,7]
[357607687,1744235466353,-375.51691418,0.00038356,2]
[357607688,1744235466363,-500.0,0.00038356,2]
[357607689,1744235466372,-500.0,0.00038356,2]
[357607690,1744235466382,-539.02665581,0.00038356,2]
[357607691,1744235466391,-275.73218246,0.00038356,2]
[357607692,1744235466401,-250.0,0.00038356,2]
[357607693,1744235466411,-523.63,0.00038356,2]
[357607694,1744235466421,-575.25,0.00038356,2]
[357607695,1744235466432,-151.0,0.00038356,7]
[357607696,1744235466444,-500.0,0.00038356,2]
[357607697,1744235466455,-151.0,0.00038356,7]
[357607698,1744235466465,-500.0,0.00038356,2]
[357607699,1744235466475,-362.59186946,0.00038356,2]
[357607700,1744235466486,-523.108336,0.00038356,2]
[357607701,1744235466496,-500.0,0.00038356,2]
[357607702,1744235466506,-500.0,0.00038356,2]
[357607703,1744235466517,-500.0,0.00038356,2]
[357607704,1744235466527,-500.0,0.00038356,2]